bitfinex-derivatives/quotes_ETHF0:USTF0_20250507
["timestamp","ask_amount","ask_price","bid_price","bid_amount"]
[1746605124091,2.71977,1838.5,1838.1,3.2078]
[1746605124393,2.71977,1838.5,1838.0,3.55625]
[1746605124394,1.08813,1838.1,1838.0,1.08816]
[1746605124691,5.44013,1838.1,1838.0,1.08816]
[1746605125092,1.08819,1838.0,1837.9,4.29602]
[1746605125291,3.50799,1838.0,1837.9,4.29602]
[1746605125592,2.4198,1838.0,1837.9,4.29602]
[1746605126179,2.4198,1838.0,1837.9,3.2078]
[1746605126685,2.4198,1838.0,1837.9,4.29605]
[1746605127290,2.4198,1838.0,1837.8,8.2822714]
[1746605127491,2.4489,1837.9,1837.8,8.2822714]
[1746605128395,2.4489,1837.9,1837.8,1.0883]
[1746605130496,3.53715,1837.9,1837.8,1.0883]
[1746605130792,3.53715,1837.9,1837.7,5.88411]
[1746605130996,5.9962,1837.8,1837.7,5.88411]
[1746605131194,4.344,1837.8,1837.7,5.88411]
[1746605135100,5.43231,1837.8,1837.7,5.88411]
[1746605135288,4.344,1837.8,1837.7,5.88411]
[1746605140998,4.344,1837.8,1837.7,10.88411]
[1746605141199,4.344,1837.8,1837.7,5.88411]
[1746605143901,2.75462,1838.0,1837.9,1.08825]
[1746605143902,1.08822,1838.0,1837.9,1.08825]
[1746605144109,4.345,1838.2,1838.1,1.08813]
[1746605144604,4.345,1838.2,1838.1,2.82293]
[1746605145009,4.345,1838.2,1838.1,3.64543]
[1746605145901,0.7915,1838.4,1838.1,8.48533]
[1746605146109,4.344,1838.5,1838.4,1.08795]
[1746605146316,4.344,1838.5,1838.4,2.82275]
[1746605146510,4.344,1838.5,1838.4,3.66585]
[1746605147119,6.0575,1838.5,1838.4,3.66585]
[1746605148421,6.0575,1838.5,1838.4,2.82275]
[1746605148618,7.14539,1838.5,1838.4,1.08795]
[1746605149422,6.0575,1838.5,1838.2,2.4881]
[1746605149623,2.7289,1838.4,1838.3,1.08801]
[1746605149810,1.08807,1838.2,1838.1,4.29589]
[1746605150123,4.344,1838.2,1838.1,4.29593]
[1746605150713,8.63965,1838.6,1838.5,1.08789]
[1746605150915,9.44445,1838.6,1838.5,1.08789]
[1746605151320,1.08792,1838.5,1838.4,1.08792]
[1746605151520,1.89292,1838.5,1838.4,1.08792]
[1746605152323,1.89292,1838.5,1838.4,2.82692]
[1746605158224,1.89292,1838.5,1838.4,1.08792]
[1746605159124,1.08795,1838.4,1838.3,1.88207]
[1746605159621,1.08795,1838.4,1838.3,1.08797]
[1746605160227,1.89293,1838.5,1838.4,1.08795]
[1746605160527,0.805,1838.5,1838.4,1.08795]
[1746605160929,5.1488,1838.6,1838.5,1.08789]
[1746605161229,0.8112,1838.8,1838.7,1.08777]
[1746605162429,0.8112,1838.8,1838.7,3.64577]
[1746605163621,1.89892,1838.8,1838.7,3.64577]
[1746605163820,1.89892,1838.8,1838.7,1.08777]
[1746605165033,1.0878,1838.7,1838.6,1.08779]
[1746605165428,0.8112,1838.8,1838.4,5.92767]
[1746605165630,0.8096,1838.6,1838.5,1.08789]
[1746605165829,5.1176,1838.6,1838.5,3.55509]
[1746605166833,5.1176,1838.6,1838.5,1.08789]
[1746605167830,6.20543,1838.6,1838.5,1.08789]
[1746605169431,1.08789,1838.5,1838.4,4.29575]
[1746605169630,1.89019,1838.5,1838.4,4.29575]
[1746605170328,3.62179,1838.5,1838.4,4.29575]
[1746605172137,2.5339,1838.5,1838.4,4.29575]
[1746605172332,3.62179,1838.5,1838.4,4.29575]
[1746605174635,1.08795,1838.4,1838.3,2.69299]
[1746605174829,2.73825,1838.4,1838.3,1.08799]
[1746605175029,1.08801,1838.3,1838.2,1.08803]
[1746605175231,2.73831,1838.3,1838.2,1.08803]
[1746605175430,7.04631,1838.3,1838.2,1.08803]
[1746605175935,5.9583,1838.3,1838.1,1.7379]
[1746605176237,4.40457,1838.2,1838.1,1.0881]
[1746605177539,1.08813,1838.1,1838.0,2.82608]
[1746605177839,1.08819,1838.0,1837.9,5.1459]
[1746605178033,1.08819,1838.0,1837.7,9.9148814]
[1746605178034,1.08831,1837.8,1837.7,8.2823114]
[1746605178241,1.08831,1837.8,1837.7,7.1939714]
[1746605178739,3.49511,1837.8,1837.7,7.1939714]
[1746605181940,2.4068,1837.8,1837.7,1.08837]
[1746605182140,5.1265,1837.8,1837.7,1.08837]
[1746605182344,6.8636,1837.8,1837.7,1.08837]
[1746605182537,6.8636,1837.8,1837.7,2.70997]
[1746605183033,6.8636,1837.8,1837.6,1.08838]
[1746605183238,1.7371,1837.7,1837.6,1.08838]
[1746605184443,1.7371,1837.7,1837.6,2.77498]
[1746605184743,2.82547,1837.7,1837.6,2.77498]
[1746605184945,1.7371,1837.7,1837.6,2.77498]
[1746605185142,2.82547,1837.7,1837.6,2.77498]
[1746605185343,1.7371,1837.7,1837.6,2.77498]
[1746605185543,2.82547,1837.7,1837.6,2.77498]
[1746605186044,1.08843,1837.6,1837.5,4.29625]
[1746605186240,3.54453,1837.6,1837.5,4.29625]
[1746605186442,3.54453,1837.6,1837.5,3.2078]
[1746605186736,3.54453,1837.6,1837.5,4.29628]
[1746605187442,2.4561,1837.6,1837.5,4.29628]
[1746605188139,3.54453,1837.6,1837.5,4.29628]
[1746605189747,2.4561,1837.6,1837.5,4.29628]
[1746605190450,3.54453,1837.6,1837.5,4.29628]
[1746605190845,3.54453,1837.6,1837.5,3.2078]
[1746605191041,3.54453,1837.6,1837.5,4.29628]
[1746605192149,2.4561,1837.6,1837.5,4.29628]
[1746605193338,3.54453,1837.6,1837.5,4.29628]
[1746605193538,3.54453,1837.6,1837.5,5.16748]
[1746605196347,1.08848,1837.5,1837.4,2.77514]
[1746605196547,7.13228,1837.5,1837.4,2.77514]
[1746605199246,6.0438,1837.5,1837.4,2.77514]
[1746605200254,7.13228,1837.5,1837.4,2.77514]
[1746605202847,9.2516,1837.5,1836.8,8.44002]
[1746605203050,1.08865,1837.3,1837.1,1.08871]
[1746605203250,2.4998,1837.4,1837.2,2.79513]
[1746605203449,2.4998,1837.4,1837.3,1.7065]
[1746605203756,7.89534,1837.4,1837.3,2.51]
[1746605203947,4.307,1837.4,1837.3,6.8064]
[1746605204154,5.39554,1837.4,1837.3,3.5986]
[1746605205355,5.39554,1837.4,1837.3,2.51]
[1746605207354,5.39554,1837.4,1837.3,1.7065]
[1746605207555,7.05954,1837.4,1837.3,1.7065]
[1746605208451,7.05954,1837.4,1837.1,1.92927]
[1746605208658,1.08866,1837.2,1837.1,3.56517]
[1746605209452,1.08865,1837.3,1837.2,1.08866]
[1746605209658,1.08865,1837.3,1837.2,2.72456]
[1746605210458,1.0886,1837.3,1837.2,2.72456]
[1746605210760,7.04609,1837.4,1837.3,1.0886]
[1746605210950,7.04609,1837.4,1837.3,3.5736]
[1746605211150,7.04609,1837.4,1837.3,2.485]
[1746605212360,7.04609,1837.4,1837.3,3.5736]
[1746605213257,7.04609,1837.4,1837.3,2.485]
[1746605213855,7.04609,1837.4,1837.3,3.5736]
[1746605214057,4.307,1837.4,1837.3,6.7814]
[1746605214746,7.12774,1837.4,1837.3,1.0886]
[1746605215252,7.12774,1837.4,1837.3,2.7879]
[1746605216257,5.39554,1837.4,1837.3,2.7879]
[1746605217559,4.307,1837.4,1837.3,2.7879]
[1746605217759,1.724,1837.6,1837.3,5.9957]
[1746605218054,7.5148,1837.7,1837.6,1.08843]
[1746605219259,7.5148,1837.7,1837.6,2.74603]
[1746605219958,8.60317,1837.7,1837.6,2.74603]
[1746605220361,7.5148,1837.7,1837.6,2.74603]
[1746605220660,0.8258,1837.9,1837.8,1.08831]
[1746605220859,5.8824,1838.0,1837.9,1.08825]
[1746605221254,5.8824,1838.0,1837.8,2.3993]
[1746605221459,1.08825,1837.9,1837.8,3.48759]
[1746605222162,6.97063,1838.0,1837.8,3.48759]
[1746605222348,2.4252,1837.9,1837.8,3.48759]
[1746605222555,3.51345,1837.9,1837.8,3.48759]
[1746605222765,1.08834,1837.8,1837.6,3.2078]
[1746605222967,2.70174,1837.8,1837.7,1.08837]
[1746605223356,1.08837,1837.7,1837.6,6.76898]
[1746605223558,3.52107,1837.7,1837.6,6.76898]
[1746605223863,2.4327,1837.7,1837.6,6.76898]
[1746605224057,1.08827,1837.9,1837.8,1.0883]
[1746605224253,4.33277,1837.9,1837.8,1.0883]
[1746605224757,3.2445,1837.9,1837.8,1.0883]
[1746605224964,4.33275,1837.9,1837.8,1.0883]
[1746605225363,4.33275,1837.9,1837.7,2.81012]
[1746605225565,2.67271,1837.8,1837.7,2.81012]
[1746605225957,1.08837,1837.7,1837.6,5.16278]
[1746605226155,2.67277,1837.7,1837.6,4.29618]
[1746605226351,6.94177,1837.7,1837.6,4.29618]
[1746605226559,1.08851,1837.5,1837.4,1.08853]
[1746605226759,3.57907,1837.6,1837.4,1.08853]
[1746605226956,2.499,1837.5,1837.4,1.08853]
[1746605227667,3.58748,1837.5,1837.4,1.08853]
[1746605227861,3.58748,1837.5,1837.3,8.8953714]
[1746605228160,1.91898,1837.5,1837.4,1.08854]
[1746605228462,0.8305,1837.5,1837.4,1.08854]
[1746605228958,0.8221,1837.6,1837.5,1.08848]
[1746605229151,4.269,1837.7,1837.6,1.08843]
[1746605229355,4.269,1837.7,1837.6,2.78983]
[1746605229763,5.35737,1837.7,1837.6,2.78983]
[1746605230359,4.269,1837.7,1837.6,2.78983]
[1746605230764,5.35737,1837.7,1837.6,2.78983]
[1746605233465,5.35737,1837.7,1837.6,1.7014]
[1746605233663,4.269,1837.7,1837.5,0.8606]
[1746605233856,6.98995,1837.7,1837.2,7.1939714]
[1746605234063,1.08851,1837.5,1837.4,1.08853]
[1746605234263,1.08851,1837.5,1837.3,5.99956]
[1746605234464,1.08851,1837.5,1837.4,1.08854]
[1746605235169,1.08851,1837.5,1837.3,5.99955]
[1746605235370,1.88064,1837.4,1837.3,5.99955]
[1746605235562,0.7921,1837.4,1837.3,5.99955]
[1746605235757,1.88064,1837.4,1837.3,5.99955]
[1746605235962,0.7921,1837.4,1837.3,5.99955]
[1746605237763,1.08852,1837.5,1837.4,1.08854]
[1746605238064,1.08852,1837.5,1837.4,2.76884]
[1746605238566,4.269,1837.7,1837.6,1.08843]
[1746605239166,4.269,1837.7,1837.6,2.70123]
[1746605240175,4.269,1837.7,1837.3,3.2078]
[1746605240470,2.73796,1837.6,1837.5,1.08847]
[1746605240674,2.73796,1837.6,1837.5,1.08848]
[1746605240870,2.73796,1837.6,1837.4,2.7013]
[1746605241072,1.6495,1837.5,1837.4,2.70134]
[1746605241268,1.6495,1837.5,1837.4,6.30134]
[1746605241469,1.6495,1837.5,1837.4,7.09654]
[1746605241671,2.73798,1837.5,1837.4,7.09654]
[1746605242066,1.6495,1837.5,1837.4,7.09654]
[1746605242379,5.35741,1837.7,1837.4,6.008]
[1746605242576,1.08843,1837.6,1837.5,2.81545]
[1746605243079,2.80753,1837.6,1837.5,2.81545]
[1746605244676,1.08848,1837.5,1837.4,1.88372]
[1746605244868,1.6235,1837.5,1837.4,1.88372]
[1746605245069,5.35741,1837.7,1837.4,2.5499]
[1746605245277,1.08844,1837.6,1837.5,1.08845]
[1746605245478,1.08844,1837.6,1837.5,2.84315]
[1746605245670,2.71194,1837.6,1837.5,2.84315]
[1746605246978,2.71194,1837.6,1837.5,1.08845]
[1746605249486,3.56734,1837.6,1837.5,1.08845]
[1746605249785,1.08848,1837.5,1837.4,6.84619]
[1746605250989,3.56735,1837.6,1837.5,1.08848]
[1746605251188,4.269,1837.7,1837.6,1.08843]
[1746605251391,4.269,1837.7,1837.6,4.29623]
[1746605251878,4.269,1837.7,1837.6,6.03913]
[1746605253988,5.35737,1837.7,1837.6,4.9507]
[1746605254378,5.35737,1837.7,1837.6,2.83133]
[1746605254582,7.03767,1837.7,1837.6,2.83133]
[1746605254880,5.35737,1837.7,1837.6,2.83133]
[1746605255691,1.08846,1837.6,1837.5,1.08844]
[1746605255987,4.269,1837.7,1837.5,1.08844]
[1746605255988,7.03771,1837.7,1837.6,1.08843]
[1746605256187,7.03771,1837.7,1837.6,2.77193]
[1746605256890,5.9493,1837.7,1837.3,4.29638]
[1746605257090,2.69995,1837.6,1837.3,3.2078]
[1746605257392,2.69995,1837.6,1837.5,1.08848]
[1746605258285,2.69995,1837.6,1837.5,2.79218]
[1746605260391,1.6115,1837.6,1837.5,2.79218]
[1746605260786,2.69993,1837.6,1837.5,2.79218]
[1746605262090,2.69993,1837.6,1837.5,1.7037]
[1746605262290,2.69993,1837.6,1837.5,2.79218]
[1746605262595,4.269,1837.7,1837.6,1.08843]
[1746605262794,4.269,1837.7,1837.6,2.74333]
[1746605263796,5.35737,1837.7,1837.6,2.74333]
[1746605264499,7.05907,1837.7,1837.6,2.74333]
[1746605264699,7.05907,1837.7,1837.6,1.08843]
[1746605265197,5.9707,1837.7,1837.6,1.08843]
[1746605265400,7.05907,1837.7,1837.6,2.67693]
[1746605265901,7.05907,1837.7,1837.6,1.5885]
[1746605266198,7.05907,1837.7,1837.6,2.67693]
[1746605266593,7.05907,1837.7,1837.6,1.08843]
[1746605266799,5.9707,1837.7,1837.6,2.69443]
[1746605267098,7.05907,1837.7,1837.6,2.69443]
[1746605267796,5.9707,1837.7,1837.6,2.69443]
[1746605267995,7.05907,1837.7,1837.6,2.69443]
[1746605268899,5.9707,1837.7,1837.6,2.69443]
[1746605270199,7.05907,1837.7,1837.6,2.69443]
[1746605271900,7.05907,1837.7,1837.6,1.08843]
[1746605273504,5.9707,1837.7,1837.6,1.08843]
[1746605273703,5.9707,1837.7,1837.6,2.75603]
[1746605274007,7.05907,1837.7,1837.6,2.75603]
[1746605274906,5.9707,1837.7,1837.6,2.75603]
[1746605275111,7.05907,1837.7,1837.6,2.75603]
[1746605275509,5.9707,1837.7,1837.6,2.75603]
[1746605276602,4.269,1837.7,1837.6,2.75603]
[1746605276808,0.8405,1837.8,1837.7,1.08837]
[1746605277107,0.8405,1837.8,1837.7,6.71697]
[1746605277911,7.00584024,1837.9,1837.8,1.08831]
[1746605278105,4.27121024,1837.9,1837.8,2.75681]
[1746605278306,4.27121024,1837.9,1837.8,7.75681]
[1746605278609,4.27121024,1837.9,1837.8,2.75681]
[1746605279507,3.3524,1838.1,1838.0,1.08819]
[1746605279712,3.3524,1838.1,1838.0,4.29599]
[1746605280107,4.44053,1838.1,1838.0,4.29599]
[1746605280307,1.08819,1838.0,1837.9,1.0882]
[1746605280507,2.75282,1838.0,1837.9,1.08825]
[1746605281814,1.6646,1838.0,1837.9,1.08825]
[1746605284012,1.6646,1838.0,1837.9,4.29605]
[1746605285613,2.75279,1838.0,1837.9,4.29605]
[1746605285816,1.08825,1837.9,1837.7,3.2078]
[1746605286017,7.04251,1837.8,1837.7,4.29617]
[1746605286210,7.04251,1837.8,1837.6,1.08839]
[1746605286411,1.7469,1837.7,1837.6,1.08839]
[1746605288522,2.83527,1837.7,1837.6,1.08839]
[1746605288817,1.7469,1837.7,1837.6,1.08839]
[1746605290520,2.83527,1837.7,1837.6,1.08839]
[1746605291124,1.7469,1837.7,1837.6,1.08839]
[1746605291619,5.9542,1837.8,1837.7,1.08837]
[1746605292022,8.68196,1837.8,1837.7,1.08837]
[1746605293222,7.5936,1837.8,1837.7,1.08837]
[1746605293522,8.68191,1837.8,1837.7,1.08837]
[1746605296825,8.68196,1837.8,1837.6,2.8197]
[1746605297027,1.6584,1837.7,1837.6,2.8197]
[1746605299228,5.1063,1837.8,1837.7,1.08837]
[1746605299523,5.1063,1837.8,1837.7,3.59927]
[1746605301226,6.19461,1837.8,1837.7,2.76867]
[1746605301427,7.78291,1837.8,1837.7,2.76867]
[1746605301623,7.78291,1837.8,1837.7,1.08837]
[1746605301930,1.08837,1837.7,1837.6,4.2962]
[1746605302120,3.47287,1837.7,1837.6,4.2962]
[1746605303028,1.08843,1837.6,1837.5,1.08847]
[1746605303220,1.7201,1837.6,1837.5,1.08847]
[1746605303421,1.7201,1837.6,1837.5,2.73217]
[1746605305430,2.80853,1837.6,1837.5,2.73217]
[1746605305621,2.80853,1837.6,1837.5,1.08847]
[1746605306123,1.7201,1837.6,1837.5,1.08847]
[1746605306427,1.7201,1837.6,1837.5,2.76287]
[1746605306624,2.80853,1837.6,1837.5,2.76287]
[1746605307326,2.80853,1837.6,1837.5,1.08847]
[1746605308535,2.80854,1837.6,1837.5,1.08848]
[1746605309437,1.7201,1837.6,1837.5,1.08848]
[1746605309737,1.7201,1837.6,1837.5,3.61408]
[1746605310634,2.80853,1837.6,1837.5,3.61408]
[1746605310834,1.7201,1837.6,1837.5,3.61408]
[1746605311029,2.80853,1837.6,1837.5,3.61408]
[1746605311238,7.07653,1837.6,1837.5,3.61408]
[1746605311636,5.9881,1837.6,1837.5,3.61408]
[1746605312239,4.268,1837.6,1837.5,3.61408]
[1746605312536,4.268,1837.9,1837.8,1.08831]
[1746605313136,4.268,1837.9,1837.8,1.94931]
[1746605313435,5.9582,1837.9,1837.8,1.94931]
[1746605313638,7.04645,1837.9,1837.8,1.94931]
[1746605313837,5.9582,1837.9,1837.8,1.94931]
[1746605315136,7.04645,1837.9,1837.8,1.94931]
[1746605315639,5.9582,1837.9,1837.8,1.94931]
[1746605316631,5.9582,1837.9,1837.8,1.08831]
[1746605318342,5.9582,1837.9,1837.8,2.68921]
[1746605318542,4.268,1837.9,1837.8,5.89701]
[1746605322848,2.77505,1838.1,1838.0,1.08819]
[1746605323950,1.6869,1838.1,1838.0,1.08819]
[1746605324853,2.77503,1838.1,1838.0,1.08819]
[1746605325652,1.6869,1838.1,1838.0,1.08819]
[1746605326351,2.77503,1838.1,1838.0,1.08819]
[1746605326853,1.6869,1838.1,1838.0,1.08819]
[1746605329061,2.77503,1838.1,1838.0,1.08819]
[1746605329459,1.6869,1838.1,1837.8,3.2078]
[1746605329664,1.08825,1837.9,1837.8,1.08827]
[1746605330061,5.35025,1837.9,1837.8,1.08827]
[1746605330262,7.04325,1837.9,1837.8,1.08827]
[1746605331063,8.68475,1837.9,1837.8,1.08827]
[1746605333262,1.08836,1837.8,1837.7,1.08836]
[1746605333461,1.7143,1837.8,1837.6,3.2078]
[1746605333761,1.7143,1837.8,1837.6,4.29618]
[1746605334066,1.08837,1837.7,1837.6,4.29618]
[1746605335865,1.08837,1837.7,1837.6,3.2078]
[1746605336063,1.08837,1837.7,1837.6,4.29623]
[1746605337968,1.08837,1837.7,1837.6,3.2078]
[1746605338270,1.08843,1837.6,1837.5,2.67605]
[1746605338464,1.92333,1837.6,1837.5,2.67605]
[1746605338671,1.08848,1837.5,1837.4,3.2078]
[1746605338872,3.52548,1837.5,1837.4,3.2078]
[1746605339174,3.52548,1837.5,1837.4,4.29634]
[1746605339971,2.437,1837.5,1837.4,4.29634]
[1746605340165,2.437,1837.5,1837.4,5.91694]
[1746605341270,3.52548,1837.5,1837.4,5.91694]
[1746605341470,2.437,1837.5,1837.4,5.91694]
[1746605342769,3.52548,1837.5,1837.4,5.91694]
[1746605342968,2.437,1837.5,1837.4,5.91694]
[1746605343175,3.52548,1837.5,1837.4,5.91694]
[1746605343369,5.0969,1837.6,1837.5,1.08848]
[1746605343570,5.0969,1837.6,1837.5,3.63118]
[1746605344364,6.7357,1837.6,1837.5,3.63118]
[1746605344872,7.82416,1837.6,1837.5,3.63118]
[1746605349878,6.7357,1837.6,1837.5,3.63118]
[1746605350375,7.82413,1837.6,1837.5,3.63118]
[1746605351765,6.7357,1837.6,1837.3,3.2078]
[1746605352074,1.08854,1837.4,1837.3,4.29634]
[1746605352581,1.94494,1837.4,1837.3,3.2078]
[1746605354481,1.94494,1837.4,1837.3,4.2964]
[1746605354776,1.94494,1837.4,1837.3,1.0886]
[1746605355280,1.0886,1837.3,1837.2,2.76663]
[1746605356280,1.94497,1837.4,1837.3,1.0886]
[1746605356580,1.94497,1837.4,1837.3,2.7666]
[1746605357083,1.94497,1837.4,1837.3,1.678]
[1746605359183,0.8564,1837.4,1837.1,5.16458]
[1746605359382,0.8564,1837.4,1837.2,1.6038]
[1746605359383,3.5254,1837.3,1837.2,1.6038]
[1746605359982,1.08866,1837.2,1837.1,3.2078]
[1746605360180,2.67796,1837.2,1837.1,3.2078]
[1746605360380,2.67796,1837.2,1837.1,4.29652]
[1746605360977,2.67796,1837.2,1837.1,3.2078]
[1746605361186,1.08872,1837.1,1837.0,2.4428]
[1746605361379,2.5636,1837.1,1836.8,9.6187714]
[1746605361576,1.08878,1837.0,1836.9,2.7136]
[1746605361981,3.66508,1837.0,1836.9,2.7136]
[1746605362485,3.66508,1837.0,1836.9,1.6248]
[1746605362686,7.89708,1837.0,1836.9,1.6248]
[1746605363684,1.08884,1836.9,1836.8,9.0828214]
[1746605363885,2.70894,1836.9,1836.8,10.7155214]
[1746605364287,2.70894,1836.9,1836.8,7.1939714]
[1746605364491,1.0889,1836.8,1836.7,4.29674]
[1746605364786,1.0889,1836.8,1836.7,5.92944]
[1746605364787,2.491,1836.8,1836.7,5.92944]
[1746605365380,1.08888,1836.9,1836.8,1.0889]
[1746605365581,1.08888,1836.9,1836.8,2.7216]
[1746605366186,1.08888,1836.9,1836.8,1.6327]
[1746605366484,2.70898,1836.9,1836.8,1.6327]
[1746605366986,2.70898,1836.9,1836.8,2.7216]
[1746605367487,2.70898,1836.9,1836.8,1.6327]
[1746605368681,2.70898,1836.9,1836.8,2.7216]
[1746605369285,2.70898,1836.9,1836.8,1.6327]
[1746605369585,1.0889,1836.8,1836.7,4.29672]
[1746605369787,2.8119,1836.8,1836.7,5.89092]
[1746605371985,1.723,1836.8,1836.7,5.89092]
[1746605372189,1.08889,1836.9,1836.8,1.0889]
[1746605372389,6.16832,1837.0,1836.9,1.08884]
[1746605372589,6.16832,1837.0,1836.9,0.8016]
[1746605375191,7.82742,1837.0,1836.9,3.57704]
[1746605375487,7.82742,1837.0,1836.9,2.4882]
[1746605375795,7.82742,1837.0,1836.9,3.57704]
[1746605375986,7.82742,1837.0,1836.9,2.4882]
[1746605377090,7.82742,1837.0,1836.9,3.57704]
[1746605377789,6.7386,1837.0,1836.9,3.57704]
[1746605378090,4.232,1837.0,1836.9,6.78484]
[1746605379891,5.32078,1837.0,1836.9,6.78484]
[1746605381796,5.32078,1837.0,1836.9,4.8944]
[1746605381987,5.32078,1837.0,1836.9,3.2078]
[1746605382490,7.00908,1837.0,1836.9,3.2078]
[1746605382789,7.00908,1837.0,1836.9,4.29664]
[1746605383485,5.9203,1837.0,1836.9,4.29664]
[1746605383688,7.00908,1837.0,1836.9,4.29664]
[1746605384595,7.00908,1837.0,1836.9,1.08884]
[1746605384889,1.08884,1836.9,1836.8,5.96506]
[1746605385093,1.6312,1836.9,1836.8,5.96506]
[1746605385390,2.72004,1836.9,1836.8,5.96506]
[1746605385586,1.6312,1836.9,1836.8,4.8762]
[1746605385791,2.72004,1836.9,1836.8,3.2078]
[1746605387195,1.0889,1836.8,1836.7,2.76141]
[1746605387380,2.7414,1836.8,1836.7,2.76141]
[1746605387586,2.7414,1836.8,1836.7,1.6725]
[1746605388094,2.7414,1836.8,1836.7,2.76146]
[1746605389986,1.08888,1836.9,1836.8,1.0889]
[1746605390187,2.81238,1836.9,1836.8,1.0889]
[1746605390382,1.08888,1836.9,1836.8,1.0889]
[1746605392694,4.23,1837.0,1836.9,1.08884]
[1746605392891,4.23,1837.0,1836.9,3.60494]
[1746605393087,4.23,1837.0,1836.9,4.41864]
[1746605395191,4.23,1837.0,1836.9,8.01864]
[1746605398193,4.23,1837.0,1836.9,4.41864]
[1746605398401,10.15904,1837.5,1836.9,8.3298]
[1746605398596,1.08866,1837.3,1837.2,1.08863]
[1746605399296,2.72366,1837.3,1837.2,1.08863]
[1746605399897,1.08866,1837.2,1837.1,2.80407]
[1746605400095,2.79536,1837.2,1837.1,2.80407]
[1746605400296,2.79536,1837.2,1837.1,1.08867]
[1746605400798,1.08872,1837.1,1837.0,5.90594]
[1746605400998,2.72522,1837.1,1837.0,5.90594]
[1746605401192,2.72522,1837.1,1837.0,2.69814]
[1746605401393,1.6365,1837.1,1837.0,2.69814]
[1746605401899,2.72367,1837.3,1837.0,4.8172]
[1746605402098,2.72367,1837.3,1837.2,1.08866]
[1746605402099,4.36017,1837.3,1837.2,1.08866]
[1746605402599,3.2715,1837.3,1837.2,1.08866]
[1746605402789,3.2715,1837.3,1837.2,1.88476]
[1746605402790,2.4675,1837.3,1837.2,1.88476]
[1746605403196,0.831,1837.3,1837.2,1.88476]
[1746605406599,1.9196,1837.3,1837.2,1.88476]
[1746605406800,3.5117,1837.3,1837.2,1.88476]
[1746605408489,2.4231,1837.3,1837.2,1.88476]
[1746605409095,3.5117,1837.3,1837.2,1.88476]
[1746605409902,2.4231,1837.3,1837.2,1.88476]
[1746605410299,3.5117,1837.3,1837.2,1.88476]
[1746605410500,2.4231,1837.3,1837.2,1.88476]
[1746605410804,3.5117,1837.3,1837.2,1.88476]
[1746605411101,2.4231,1837.3,1837.2,1.88476]
[1746605413304,3.5117,1837.3,1837.2,1.88476]
[1746605413505,2.4231,1837.3,1837.2,1.88476]
[1746605414599,3.5117,1837.3,1837.2,3.61456]
[1746605415607,3.5117,1837.3,1837.2,2.81846]
[1746605417103,2.4231,1837.3,1837.2,2.81846]
[1746605417896,3.5117,1837.3,1837.2,2.81846]
[1746605418097,2.4231,1837.3,1837.2,2.81846]
[1746605419408,3.5117,1837.3,1837.2,2.81846]
[1746605420306,2.4231,1837.3,1837.2,2.81846]
[1746605420807,3.5117,1837.3,1837.2,2.81846]
[1746605421606,3.5117,1837.3,1837.2,1.08866]
[1746605424004,2.4231,1837.3,1837.1,3.2078]
[1746605424307,5.816,1837.2,1837.0,1.08873]
[1746605424502,1.589,1837.1,1837.0,1.08873]
[1746605424702,2.4473,1837.1,1837.0,2.76523]
[1746605425607,3.53602,1837.1,1837.0,2.76523]
[1746605432411,3.53602,1837.1,1837.0,1.08873]
[1746605433510,1.08878,1837.0,1836.9,4.29661]
[1746605433712,3.54278,1837.0,1836.9,3.2078]
[1746605435416,3.54278,1837.0,1836.9,4.29664]
[1746605435815,1.08884,1836.9,1836.8,1.08886]
[1746605436117,2.80124,1836.9,1836.8,1.08886]
[1746605436816,1.08891,1836.8,1836.7,1.08891]
[1746605437007,3.64581,1836.8,1836.7,1.08891]
[1746605437814,2.5569,1836.8,1836.7,1.08891]
[1746605438011,3.6458,1836.8,1836.7,1.08891]
[1746605438216,1.08896,1836.7,1836.6,4.29678]
[1746605438417,3.67306,1836.7,1836.6,4.29678]
[1746605438607,3.67306,1836.7,1836.6,6.05328]
[1746605441417,1.08902,1836.6,1836.5,7.1939714]
[1746605441624,7.02072,1836.6,1836.5,7.1939714]
[1746605444831,1.08908,1836.5,1836.3,1.08917]
[1746605445030,0.8332,1836.4,1836.3,2.71927]
[1746605445227,1.92234,1836.4,1836.3,2.71927]
[1746605445431,3.59264,1836.4,1836.3,1.08917]
[1746605446430,2.5035,1836.4,1836.3,1.08917]
[1746605446628,3.59264,1836.4,1836.3,1.08917]
[1746605446835,2.5035,1836.4,1836.3,1.08917]
[1746605447432,3.59264,1836.4,1836.3,1.08917]
[1746605447835,2.5035,1836.4,1836.3,1.08917]
[1746605448134,2.5035,1836.4,1836.3,3.54487]
[1746605448434,3.59264,1836.4,1836.3,3.54487]
[1746605448937,0.8332,1836.4,1836.3,3.54487]
[1746605449133,1.88962,1836.5,1836.4,1.08914]
[1746605449335,1.88962,1836.5,1836.4,2.74244]
[1746605449731,3.57372,1836.5,1836.4,1.6533]
[1746605450337,1.08914,1836.4,1836.3,1.89155]
[1746605450539,1.08914,1836.4,1836.3,3.63155]
[1746605450940,3.57371,1836.5,1836.4,1.08914]
[1746605451241,1.08914,1836.4,1836.3,1.89159]
[1746605451439,2.77324,1836.4,1836.3,1.89159]